[Event "Elitserien 2022/2023"]
[Site "Elite Hotel Marina Plaza, Kungstorget 6, Helsingborg, Sweden"]
[Date "2022.10.14"]
[Round "1.24"]
[White "Penalver, Osmani"]
[Black "Kenneskog, Theodor"]
[Result "0-1"]
[TimeControl "90 minutes for 40 moves + 30 minutes for the rest of the game + 30 seconds per move from move one."]
[BlackTitle "FM"]
[WhiteFideId "1704516"]
[BlackFideId "1715011"]
[WhiteElo "2268"]
[BlackElo "2322"]

1. d4 {[%clk 01:30:57]} {[%emt 00:00:02]} Nf6 {[%clk 01:30:57]} {[%emt
00:00:03]} 2. c4 {[%clk 01:31:21]} {[%emt 00:00:08]} e6 {[%clk 01:31:23]}
{[%emt 00:00:03]} 3. Nc3 {[%clk 01:30:59]} {[%emt 00:00:52]} Bb4 {[%clk
01:31:49]} {[%emt 00:00:04]} 4. f3 {[%clk 01:30:41]} {[%emt 00:00:48]} c5
{[%clk 01:32:12]} {[%emt 00:00:06]} 5. d5 {[%clk 01:30:45]} {[%emt 00:00:26]}
b5 {[%clk 01:32:37]} {[%emt 00:00:05]} 6. e4 {[%clk 01:30:36]} {[%emt
00:00:40]} d6 {[%clk 01:33:03]} {[%emt 00:00:04]} 7. a3 {[%clk 01:29:53]}
{[%emt 00:01:13]} Ba5 {[%clk 01:29:20]} {[%emt 00:04:12]} 8. Bd2 {[%clk
01:18:46]} {[%emt 00:11:38]} a6 {[%clk 01:29:04]} {[%emt 00:00:46]} 9. dxe6
{[%clk 01:13:42]} {[%emt 00:05:34]} Bxe6 {[%clk 01:26:07]} {[%emt 00:03:27]} 10.
cxb5 {[%clk 01:13:25]} {[%emt 00:00:48]} O-O {[%clk 01:26:08]} {[%emt
00:00:28]} 11. bxa6 {[%clk 01:07:21]} {[%emt 00:06:34]} Nc6 {[%clk 01:19:14]}
{[%emt 00:07:23]} 12. Nge2 {[%clk 01:03:15]} {[%emt 00:04:37]} Rb8 {[%clk
01:10:37]} {[%emt 00:09:07]} 13. Qc1 {[%clk 00:42:50]} {[%emt 00:20:55]} Bb3
{[%clk 00:58:08]} {[%emt 00:12:58]} 14. Nb1 {[%clk 00:33:44]} {[%emt 00:09:37]}
Bb6 {[%clk 00:50:30]} {[%emt 00:08:07]} 15. Bc3 {[%clk 00:29:42]} {[%emt
00:04:33]} Rc8 {[%clk 00:43:24]} {[%emt 00:07:35]} 16. Qg5 {[%clk 00:25:39]}
{[%emt 00:04:33]} Nd4 {[%clk 00:38:57]} {[%emt 00:04:57]} 17. Bxd4 {[%clk
00:18:32]} {[%emt 00:07:37]} cxd4 {[%clk 00:39:25]} {[%emt 00:00:02]} 18. Nd2
{[%clk 00:18:45]} {[%emt 00:00:17]} Ba4 {[%clk 00:32:37]} {[%emt 00:07:17]} 19.
b3 {[%clk 00:14:28]} {[%emt 00:04:49]} h6 {[%clk 00:32:38]} {[%emt 00:00:29]}
20. Qg3 {[%clk 00:12:26]} {[%emt 00:02:32]} Ba5 {[%clk 00:25:33]} {[%emt
00:07:34]} 21. b4 {[%clk 00:11:41]} {[%emt 00:01:15]} Bc7 {[%clk 00:25:54]}
{[%emt 00:00:09]} 22. Qf2 {[%clk 00:09:54]} {[%emt 00:02:17]} Bb6 {[%clk
00:25:06]} {[%emt 00:01:17]} 23. Nf4 {[%clk 00:09:45]} {[%emt 00:00:39]} d3
{[%clk 00:24:32]} {[%emt 00:01:04]} 24. Qg3 {[%clk 00:09:17]} {[%emt 00:00:58]}
Bd4 {[%clk 00:24:11]} {[%emt 00:00:50]} 25. Rb1 {[%clk 00:06:35]} {[%emt
00:03:13]} Bc2 {[%clk 00:18:13]} {[%emt 00:06:29]} 26. Nxd3 {[%clk 00:04:50]}
{[%emt 00:02:14]} Bxb1 {[%clk 00:18:38]} {[%emt 00:00:05]} 27. Nxb1 {[%clk
00:05:17]} {[%emt 00:00:04]} Rc2 {[%clk 00:18:38]} {[%emt 00:00:29]} 28. Kd1
{[%clk 00:02:53]} {[%emt 00:02:54]} Qc7 {[%clk 00:16:56]} {[%emt 00:02:11]} 29.
Nc5 {[%clk 00:01:46]} {[%emt 00:01:38]} Bxc5 {[%clk 00:16:20]} {[%emt
00:01:06]} 30. bxc5 {[%clk 00:01:35]} {[%emt 00:00:42]} Qxc5 {[%clk 00:16:26]}
{[%emt 00:00:24]} 31. Nd2 {[%clk 00:01:30]} {[%emt 00:00:35]} Rc8 {[%clk
00:15:14]} {[%emt 00:01:42]} 32. Bc4 {[%clk 00:00:39]} {[%emt 00:01:21]} Rxc4
{[%clk 00:15:17]} {[%emt 00:00:26]} 33. Ke2 {[%clk 00:00:37]} {[%emt 00:00:33]}
Rc3 {[%clk 00:13:23]} {[%emt 00:02:23]} 34. Rd1 {[%clk 00:00:36]} {[%emt
00:00:32]} Qe3+ {[%clk 00:12:37]} {[%emt 00:01:16]} 35. Kf1 {[%clk 00:01:04]}
{[%emt 00:00:02]} Rc1 {[%clk 00:13:00]} {[%emt 00:00:07]} 36. Qe1 {[%clk
00:01:03]} {[%emt 00:00:31]} Qxa3 {[%clk 00:10:57]} {[%emt 00:02:32]} 37. Kf2
{[%clk 00:01:14]} {[%emt 00:00:20]} Rxd1 {[%clk 00:10:58]} {[%emt 00:00:29]} 38.
Qxd1 {[%clk 00:01:36]} {[%emt 00:00:08]} Qxa6 {[%clk 00:11:25]} {[%emt
00:00:04]} 39. Qb3 {[%clk 00:01:52]} {[%emt 00:00:14]} Qa7+ {[%clk 00:11:47]}
{[%emt 00:00:07]} 0-1

[Event "Elitserien 2022/2023"]
[Site "Elite Hotel Marina Plaza, Kungstorget 6, Helsingborg, Sweden"]
[Date "2022.10.14"]
[Round "1.25"]
[White "Amin, Bassem"]
[Black "Semcesen, Daniel"]
[Result "1-0"]
[TimeControl "90 minutes for 40 moves + 30 minutes for the rest of the game + 30 seconds per move from move one."]
[WhiteTitle "GM"]
[BlackTitle "GM"]
[WhiteFideId "10601457"]
[BlackFideId "1706993"]
[WhiteElo "2663"]
[BlackElo "2472"]

1. Nf3 {[%clk 01:24:24]} {[%emt 00:06:34]} d5 {[%clk 01:30:04]} {[%emt
00:00:57]} 2. g3 {[%clk 01:24:20]} {[%emt 00:00:35]} Nf6 {[%clk 01:28:55]}
{[%emt 00:01:38]} 3. Bg2 {[%clk 01:24:40]} {[%emt 00:00:09]} Bg4 {[%clk
01:28:26]} {[%emt 00:01:00]} 4. c4 {[%clk 01:24:40]} {[%emt 00:00:29]} c6
{[%clk 01:24:51]} {[%emt 00:04:06]} 5. Ne5 {[%clk 01:24:37]} {[%emt 00:00:33]}
Be6 {[%clk 01:24:28]} {[%emt 00:00:53]} 6. cxd5 {[%clk 01:24:59]} {[%emt
00:00:08]} Bxd5 {[%clk 01:24:44]} {[%emt 00:00:13]} 7. Nf3 {[%clk 01:25:24]}
{[%emt 00:00:06]} c5 {[%clk 01:21:46]} {[%emt 00:03:29]} 8. Nc3 {[%clk
01:25:42]} {[%emt 00:00:11]} Bc6 {[%clk 01:22:09]} {[%emt 00:00:07]} 9. O-O
{[%clk 01:26:07]} {[%emt 00:00:05]} e6 {[%clk 01:20:56]} {[%emt 00:01:43]} 10.
Re1 {[%clk 01:26:03]} {[%emt 00:00:34]} Be7 {[%clk 01:19:11]} {[%emt 00:02:15]}
11. e4 {[%clk 01:26:19]} {[%emt 00:00:14]} O-O {[%clk 01:10:49]} {[%emt
00:08:52]} 12. d4 {[%clk 01:25:31]} {[%emt 00:01:17]} Re8 {[%clk 01:01:03]}
{[%emt 00:10:17]} 13. Bf4 {[%clk 01:21:02]} {[%emt 00:04:58]} Na6 {[%clk
00:44:20]} {[%emt 00:17:13]} 14. Qd2 {[%clk 01:18:06]} {[%emt 00:03:26]} Rc8
{[%clk 00:33:26]} {[%emt 00:11:25]} 15. Rad1 {[%clk 01:17:08]} {[%emt
00:01:27]} Bf8 {[%clk 00:28:57]} {[%emt 00:05:00]} 16. d5 {[%clk 01:13:46]}
{[%emt 00:03:52]} exd5 {[%clk 00:28:33]} {[%emt 00:00:54]} 17. exd5 {[%clk
01:14:01]} {[%emt 00:00:15]} Rxe1+ {[%clk 00:28:41]} {[%emt 00:00:23]} 18. Qxe1
{[%clk 01:14:02]} {[%emt 00:00:29]} Bd7 {[%clk 00:28:32]} {[%emt 00:00:38]} 19.
Ne5 {[%clk 01:12:28]} {[%emt 00:02:04]} Qb6 {[%clk 00:27:26]} {[%emt 00:01:36]}
20. Nxd7 {[%clk 01:06:24]} {[%emt 00:06:34]} Nxd7 {[%clk 00:27:44]} {[%emt
00:00:12]} 21. d6 {[%clk 01:06:33]} {[%emt 00:00:22]} Rd8 {[%clk 00:19:32]}
{[%emt 00:08:42]} 22. Nd5 {[%clk 00:58:45]} {[%emt 00:08:17]} Qxb2 {[%clk
00:19:14]} {[%emt 00:00:48]} 23. Rb1 {[%clk 00:46:29]} {[%emt 00:12:46]} Qxa2
{[%clk 00:18:01]} {[%emt 00:01:43]} 24. Ne7+ {[%clk 00:45:11]} {[%emt
00:01:49]} Kh8 {[%clk 00:17:14]} {[%emt 00:01:16]} 25. Bxb7 {[%clk 00:39:04]}
{[%emt 00:06:38]} Nb4 {[%clk 00:15:04]} {[%emt 00:02:39]} 26. Rxb4 {[%clk
00:37:52]} {[%emt 00:01:42]} cxb4 {[%clk 00:08:36]} {[%emt 00:06:58]} 27. Nc6
{[%clk 00:38:09]} {[%emt 00:00:14]} b3 {[%clk 00:02:27]} {[%emt 00:06:39]} 28.
Nxd8 {[%clk 00:38:20]} {[%emt 00:00:18]} b2 {[%clk 00:02:48]} {[%emt 00:00:09]}
29. Be4 {[%clk 00:38:42]} {[%emt 00:00:07]} 1-0

[Event "Elitserien 2022/2023"]
[Site "Elite Hotel Marina Plaza, Kungstorget 6, Helsingborg, Sweden"]
[Date "2022.10.14"]
[Round "1.26"]
[White "Sylvan, Jacob"]
[Black "Grigorov, Grigor"]
[Result "1/2-1/2"]
[TimeControl "90 minutes for 40 moves + 30 minutes for the rest of the game + 30 seconds per move from move one."]
[WhiteTitle "IM"]
[BlackTitle "GM"]
[WhiteFideId "1402137"]
[BlackFideId "2907313"]
[WhiteElo "2310"]
[BlackElo "2512"]

1. e4 {[%clk 01:30:56]} {[%emt 00:00:03]} c6 {[%clk 01:30:50]} {[%emt
00:00:11]} 2. d4 {[%clk 01:29:56]} {[%emt 00:01:31]} d5 {[%clk 01:31:06]}
{[%emt 00:00:13]} 3. exd5 {[%clk 01:28:59]} {[%emt 00:01:27]} cxd5 {[%clk
01:31:27]} {[%emt 00:00:09]} 4. c4 {[%clk 01:29:13]} {[%emt 00:00:17]} Nf6
{[%clk 01:31:46]} {[%emt 00:00:09]} 5. Nc3 {[%clk 01:29:30]} {[%emt 00:00:13]}
e6 {[%clk 01:29:50]} {[%emt 00:02:26]} 6. Nf3 {[%clk 01:28:27]} {[%emt
00:01:34]} Bb4 {[%clk 01:29:34]} {[%emt 00:00:46]} 7. cxd5 {[%clk 01:15:44]}
{[%emt 00:13:14]} exd5 {[%clk 01:29:51]} {[%emt 00:00:13]} 8. Bb5+ {[%clk
01:12:49]} {[%emt 00:03:24]} Bd7 {[%clk 01:26:53]} {[%emt 00:03:27]} 9. Qe2+
{[%clk 01:12:05]} {[%emt 00:01:15]} Ne4 {[%clk 01:25:09]} {[%emt 00:02:13]} 10.
O-O {[%clk 01:06:13]} {[%emt 00:06:23]} Bxc3 {[%clk 01:24:46]} {[%emt
00:00:53]} 11. bxc3 {[%clk 01:06:35]} {[%emt 00:00:08]} O-O {[%clk 01:21:11]}
{[%emt 00:04:04]} 12. Bd3 {[%clk 01:05:18]} {[%emt 00:01:48]} Nxc3 {[%clk
01:06:50]} {[%emt 00:14:51]} 13. Qb2 {[%clk 00:55:09]} {[%emt 00:10:40]} Qc8
{[%clk 01:00:34]} {[%emt 00:06:46]} 14. Bf4 {[%clk 00:47:15]} {[%emt 00:08:23]}
Ne4 {[%clk 00:59:41]} {[%emt 00:01:23]} 15. Rfc1 {[%clk 00:43:37]} {[%emt
00:04:08]} Bc6 {[%clk 00:57:16]} {[%emt 00:02:55]} 16. Ne5 {[%clk 00:42:12]}
{[%emt 00:01:55]} Qe6 {[%clk 00:55:13]} {[%emt 00:02:32]} 17. f3 {[%clk
00:28:41]} {[%emt 00:14:01]} Nd6 {[%clk 00:55:03]} {[%emt 00:00:41]} 18. Re1
{[%clk 00:27:26]} {[%emt 00:01:45]} Qf6 {[%clk 00:51:30]} {[%emt 00:04:04]} 19.
Qd2 {[%clk 00:20:31]} {[%emt 00:07:25]} Nc4 {[%clk 00:49:26]} {[%emt 00:02:34]}
20. Nxc4 {[%clk 00:19:39]} {[%emt 00:01:22]} dxc4 {[%clk 00:49:48]} {[%emt
00:00:08]} 21. Bxc4 {[%clk 00:19:46]} {[%emt 00:00:22]} Nd7 {[%clk 00:37:13]}
{[%emt 00:13:05]} 1/2-1/2

[Event "Elitserien 2022/2023"]
[Site "Elite Hotel Marina Plaza, Kungstorget 6, Helsingborg, Sweden"]
[Date "2022.10.14"]
[Round "1.27"]
[White "Engqvist, Thomas"]
[Black "Kristensen, Kaare Hove"]
[Result "1-0"]
[TimeControl "90 minutes for 40 moves + 30 minutes for the rest of the game + 30 seconds per move from move one."]
[WhiteTitle "IM"]
[BlackTitle "IM"]
[WhiteFideId "1700332"]
[BlackFideId "1400940"]
[WhiteElo "2333"]
[BlackElo "2267"]

1. c4 {[%clk 01:30:31]} {[%emt 00:00:28]} b6 {[%clk 01:28:42]} {[%emt
00:02:19]} 2. Nc3 {[%clk 01:30:35]} {[%emt 00:00:25]} Bb7 {[%clk 01:28:59]}
{[%emt 00:00:13]} 3. e4 {[%clk 01:30:45]} {[%emt 00:00:21]} e5 {[%clk
01:21:23]} {[%emt 00:08:05]} 4. Nf3 {[%clk 01:25:49]} {[%emt 00:05:26]} Nc6
{[%clk 01:19:31]} {[%emt 00:02:22]} 5. d4 {[%clk 01:22:46]} {[%emt 00:03:33]}
exd4 {[%clk 01:18:48]} {[%emt 00:01:14]} 6. Nxd4 {[%clk 01:23:10]} {[%emt
00:00:06]} Bb4 {[%clk 01:01:47]} {[%emt 00:17:30]} 7. Nf5 {[%clk 01:09:40]}
{[%emt 00:14:01]} Bxc3+ {[%clk 00:56:36]} {[%emt 00:05:40]} 8. bxc3 {[%clk
01:10:07]} {[%emt 00:00:04]} Qf6 {[%clk 00:55:51]} {[%emt 00:01:15]} 9. Bd2
{[%clk 01:07:49]} {[%emt 00:02:47]} Nge7 {[%clk 00:52:54]} {[%emt 00:03:27]} 10.
Ne3 {[%clk 01:00:46]} {[%emt 00:07:34]} Ne5 {[%clk 00:44:28]} {[%emt 00:08:56]}
11. f3 {[%clk 00:55:33]} {[%emt 00:05:43]} c6 {[%clk 00:34:23]} {[%emt
00:10:34]} 12. Be2 {[%clk 00:51:18]} {[%emt 00:04:45]} O-O {[%clk 00:23:58]}
{[%emt 00:10:55]} 13. O-O {[%clk 00:51:15]} {[%emt 00:00:33]} d5 {[%clk
00:21:23]} {[%emt 00:03:05]} 14. f4 {[%clk 00:32:00]} {[%emt 00:19:45]} Nxc4
{[%clk 00:17:07]} {[%emt 00:04:47]} 15. e5 {[%clk 00:17:01]} {[%emt 00:15:29]}
Qe6 {[%clk 00:15:54]} {[%emt 00:01:42]} 16. Bxc4 {[%clk 00:16:20]} {[%emt
00:01:11]} dxc4 {[%clk 00:16:07]} {[%emt 00:00:18]} 17. f5 {[%clk 00:16:32]}
{[%emt 00:00:18]} Qxe5 {[%clk 00:08:00]} {[%emt 00:08:37]} 18. f6 {[%clk
00:12:25]} {[%emt 00:04:38]} Nd5 {[%clk 00:06:13]} {[%emt 00:02:17]} 19. Ng4
{[%clk 00:12:10]} {[%emt 00:00:44]} Qd6 {[%clk 00:05:35]} {[%emt 00:01:08]} 20.
Nh6+ {[%clk 00:12:06]} {[%emt 00:00:34]} 1-0

[Event "Elitserien 2022/2023"]
[Site "Elite Hotel Marina Plaza, Kungstorget 6, Helsingborg, Sweden"]
[Date "2022.10.14"]
[Round "1.28"]
[White "Nilsson, Anders"]
[Black "Cramling, Pia"]
[Result "1/2-1/2"]
[TimeControl "90 minutes for 40 moves + 30 minutes for the rest of the game + 30 seconds per move from move one."]
[WhiteTitle "CM"]
[BlackTitle "GM"]
[WhiteFideId "1705423"]
[BlackFideId "1700030"]
[WhiteElo "2209"]
[BlackElo "2468"]

1. d4 {[%clk 01:30:56]} {[%emt 00:00:02]} Nf6 {[%clk 01:30:43]} {[%emt
00:00:17]} 2. Bf4 {[%clk 01:30:13]} {[%emt 00:01:13]} d5 {[%clk 01:27:53]}
{[%emt 00:03:21]} 3. e3 {[%clk 01:30:34]} {[%emt 00:00:09]} c5 {[%clk
01:28:16]} {[%emt 00:00:07]} 4. Nf3 {[%clk 01:27:20]} {[%emt 00:03:44]} Nc6
{[%clk 01:28:16]} {[%emt 00:00:30]} 5. Nbd2 {[%clk 01:26:17]} {[%emt 00:01:34]}
cxd4 {[%clk 01:23:09]} {[%emt 00:05:36]} 6. exd4 {[%clk 01:26:29]} {[%emt
00:00:18]} Bf5 {[%clk 01:22:19]} {[%emt 00:01:20]} 7. c3 {[%clk 01:26:37]}
{[%emt 00:00:23]} e6 {[%clk 01:21:59]} {[%emt 00:00:49]} 8. Bb5 {[%clk
01:26:43]} {[%emt 00:00:24]} Bd6 {[%clk 01:08:54]} {[%emt 00:13:34]} 9. Bxd6
{[%clk 01:25:22]} {[%emt 00:01:51]} Qxd6 {[%clk 01:09:20]} {[%emt 00:00:04]} 10.
O-O {[%clk 01:24:26]} {[%emt 00:01:27]} Bg4 {[%clk 01:01:20]} {[%emt 00:08:29]}
11. Re1 {[%clk 01:16:06]} {[%emt 00:08:50]} O-O {[%clk 01:00:23]} {[%emt
00:01:27]} 12. a4 {[%clk 01:04:08]} {[%emt 00:12:27]} Ne7 {[%clk 00:43:53]}
{[%emt 00:17:01]} 13. Qc2 {[%clk 00:47:40]} {[%emt 00:16:57]} Rac8 {[%clk
00:34:38]} {[%emt 00:09:45]} 14. Ne5 {[%clk 00:46:58]} {[%emt 00:01:14]} Bf5
{[%clk 00:34:59]} {[%emt 00:00:09]} 15. Qb3 {[%clk 00:35:13]} {[%emt 00:12:15]}
h6 {[%clk 00:33:34]} {[%emt 00:01:54]} 16. a5 {[%clk 00:34:36]} {[%emt
00:01:07]} Rc7 {[%clk 00:31:46]} {[%emt 00:02:18]} 17. Bf1 {[%clk 00:24:19]}
{[%emt 00:10:48]} Ne4 {[%clk 00:27:03]} {[%emt 00:05:12]} 18. Nxe4 {[%clk
00:22:31]} {[%emt 00:02:19]} Bxe4 {[%clk 00:27:24]} {[%emt 00:00:08]} 19. Ra4
{[%clk 00:18:11]} {[%emt 00:04:51]} Rb8 {[%clk 00:23:30]} {[%emt 00:04:22]} 20.
Rb4 {[%clk 00:12:47]} {[%emt 00:05:56]} f6 {[%clk 00:23:10]} {[%emt 00:00:50]}
21. Nd3 {[%clk 00:13:05]} {[%emt 00:00:13]} Nc6 {[%clk 00:22:40]} {[%emt
00:01:00]} 22. Rb5 {[%clk 00:11:14]} {[%emt 00:02:21]} Bxd3 {[%clk 00:20:21]}
{[%emt 00:02:48]} 23. Bxd3 {[%clk 00:11:36]} {[%emt 00:00:10]} Kf7 {[%clk
00:20:12]} {[%emt 00:00:37]} 24. Qd1 {[%clk 00:11:09]} {[%emt 00:00:58]} Ne7
{[%clk 00:19:01]} {[%emt 00:01:40]} 25. Qh5+ {[%clk 00:11:20]} {[%emt
00:00:20]} Kg8 {[%clk 00:19:23]} {[%emt 00:00:07]} 26. Qg4 {[%clk 00:11:09]}
{[%emt 00:00:42]} Kf7 {[%clk 00:17:18]} {[%emt 00:02:32]} 27. Qh5+ {[%clk
00:11:29]} {[%emt 00:00:12]} Kg8 {[%clk 00:17:39]} {[%emt 00:00:09]} 28. Qg4
{[%clk 00:11:57]} {[%emt 00:00:03]} Kf7 {[%clk 00:17:35]} {[%emt 00:00:34]} 29.
Qh5+ {[%clk 00:12:23]} {[%emt 00:00:04]} Kg8 {[%emt 00:00:30]} 30. Qg4 {[%emt
00:00:22]} Kf7 {[%emt 00:00:15]} 1/2-1/2

[Event "Elitserien 2022/2023"]
[Site "Elite Hotel Marina Plaza, Kungstorget 6, Helsingborg, Sweden"]
[Date "2022.10.14"]
[Round "1.30"]
[White "Rosell, Tomas"]
[Black "Wedberg, Tom"]
[Result "0-1"]
[TimeControl "90 minutes for 40 moves + 30 minutes for the rest of the game + 30 seconds per move from move one."]
[BlackTitle "GM"]
[WhiteFideId "1707132"]
[BlackFideId "1700073"]
[WhiteElo "2174"]
[BlackElo "2395"]

1. e4 {[%clk 01:30:58]} {[%emt 00:00:01]} e5 {[%clk 01:30:52]} {[%emt
00:00:10]} 2. Nf3 {[%clk 01:31:18]} {[%emt 00:00:08]} Nc6 {[%clk 01:31:02]}
{[%emt 00:00:19]} 3. d4 {[%clk 01:31:27]} {[%emt 00:00:23]} exd4 {[%clk
01:31:25]} {[%emt 00:00:07]} 4. Nxd4 {[%clk 01:31:53]} {[%emt 00:00:03]} g6
{[%emt 00:01:29]} 5. Nc3 {[%clk 01:21:46]} {[%emt 00:09:21]} Bg7 {[%clk
01:31:55]} {[%emt 00:00:17]} 6. Be3 {[%clk 01:14:22]} {[%emt 00:07:54]} Nf6
{[%clk 01:32:14]} {[%emt 00:00:11]} 7. Nxc6 {[%clk 00:45:39]} {[%emt 00:29:13]}
bxc6 {[%clk 01:32:24]} {[%emt 00:00:20]} 8. e5 {[%clk 00:39:23]} {[%emt
00:06:46]} Ng8 {[%clk 01:32:06]} {[%emt 00:00:48]} 9. f4 {[%clk 00:38:05]}
{[%emt 00:01:48]} Nh6 {[%clk 01:32:21]} {[%emt 00:00:15]} 10. Be2 {[%clk
00:26:46]} {[%emt 00:11:50]} O-O {[%clk 01:23:52]} {[%emt 00:08:58]} 11. O-O
{[%clk 00:27:14]} {[%emt 00:00:03]} d6 {[%clk 01:23:04]} {[%emt 00:01:17]} 12.
exd6 {[%clk 00:21:20]} {[%emt 00:06:25]} cxd6 {[%clk 01:22:43]} {[%emt
00:00:50]} 13. Bd4 {[%clk 00:18:51]} {[%emt 00:02:59]} Nf5 {[%clk 01:07:39]}
{[%emt 00:15:34]} 14. Bxg7 {[%clk 00:18:59]} {[%emt 00:00:22]} Kxg7 {[%clk
01:07:41]} {[%emt 00:00:28]} 15. Kh1 {[%clk 00:18:41]} {[%emt 00:00:48]} Re8
{[%clk 01:03:36]} {[%emt 00:04:35]} 16. g3 {[%clk 00:16:03]} {[%emt 00:03:08]}
d5 {[%clk 00:49:48]} {[%emt 00:14:18]} 17. Bf3 {[%clk 00:13:32]} {[%emt
00:03:01]} Qf6 {[%clk 00:47:53]} {[%emt 00:02:24]} 18. Qd2 {[%clk 00:13:14]}
{[%emt 00:00:49]} Ne3 {[%clk 00:45:29]} {[%emt 00:02:54]} 19. Rfe1 {[%clk
00:12:46]} {[%emt 00:00:58]} Nc4 {[%clk 00:45:20]} {[%emt 00:00:39]} 20. Qc1
{[%clk 00:11:21]} {[%emt 00:01:55]} Bf5 {[%clk 00:43:13]} {[%emt 00:02:38]} 21.
Rf1 {[%clk 00:09:45]} {[%emt 00:02:06]} Re3 {[%clk 00:38:00]} {[%emt 00:05:42]}
22. g4 {[%clk 00:05:36]} {[%emt 00:04:39]} Bd7 {[%clk 00:38:09]} {[%emt
00:00:21]} 23. Bg2 {[%clk 00:05:08]} {[%emt 00:00:58]} Bxg4 {[%clk 00:37:45]}
{[%emt 00:00:54]} 24. Nxd5 {[%clk 00:05:08]} {[%emt 00:00:31]} cxd5 {[%clk
00:38:03]} {[%emt 00:00:11]} 25. Bxd5 {[%clk 00:05:35]} {[%emt 00:00:03]} Rae8
{[%clk 00:38:22]} {[%emt 00:00:10]} 26. Bxc4 {[%clk 00:05:32]} {[%emt
00:00:34]} Qc6+ {[%clk 00:38:42]} {[%emt 00:00:10]} 0-1